fUST/lending_fUST_20240718
["ID","MTS","AMOUNT","RATE_DAILY","PERIOD"]
[332577418,1721309448009,-150.112233,0.000206,4]
[332577419,1721309448021,-640.06380619,0.00020687,2]
[332577420,1721309448031,-150.112233,0.000208,2]
[332577421,1721309448041,-307.2730719,0.00020822,2]
[332577422,1721309448050,-150.112233,0.000209,2]
[332577423,1721309448060,-151.0,0.0002091,2]
[332577424,1721309448069,-151.0,0.0002091,2]
[332577425,1721309448079,-151.0,0.0002091,2]
[332577426,1721309448089,-151.0,0.0002091,2]
[332577427,1721309448099,-250694.64617489,0.0002091,2]
[332577517,1721310632322,-150.0,0.000189,2]
[332577518,1721310632332,-166.666666,0.00018909,2]
[332577520,1721310632342,-300.0,0.00019118,2]
[332577522,1721310632352,-257.0,0.00019118,2]
[332577523,1721310632361,-5096.533334,0.00019119,2]
[332577524,1721310632373,-7201.77621255,0.00019119,2]
[332577595,1721310638171,-7027.74782165,0.00019119,2]
[332577597,1721310638181,-193.559772,0.00019159,2]
[332577599,1721310638191,-166.666666,0.00019425,2]
[332577601,1721310638203,-181.584678,0.00019428,2]
[332577603,1721310638213,-165.000317,0.00019672,2]
[332577605,1721310638222,-181.584678,0.00019765,2]
[332577607,1721310638232,-166.666666,0.0001994,2]
[332577609,1721310638243,-1070.2515527,0.00019989,20]
[332577611,1721310638252,-113.26312253,0.00019989,2]
[332577850,1721310642390,-247.22479754,0.00019989,2]
[332577852,1721310642399,-181.584678,0.00020103,2]
[332577854,1721310642409,-587.1622202,0.00020178,2]
[332577856,1721310642419,-1307.59683206,0.00020251,2]
[332577858,1721310642429,-456.35836971,0.00020277,2]
[332577860,1721310642439,-293.7070141,0.00020278,2]
[332577862,1721310642449,-293.7070141,0.00020278,2]
[332577864,1721310642459,-293.7070141,0.00020378,2]
[332577866,1721310642469,-306.0,0.00020378,2]
[332577868,1721310642479,-268.94561226,0.00020439,7]
[332577870,1721310642488,-181.584678,0.0002044,2]
[332577871,1721310642497,-166.666666,0.00020456,2]
[332577873,1721310642507,-153.0,0.00020578,2]
[332577875,1721310642516,-587.2597064,0.00020578,2]
[332577877,1721310642529,-153.0,0.00020578,2]
[332577879,1721310642539,-621.00319031,0.00020636,2]
[332577881,1721310642549,-2617.76,0.00020796,6]
[332577883,1721310642558,-1731.84602079,0.000208,2]
[332577885,1721310642567,-294.80692264,0.00020881,2]
[332577887,1721310642577,-176.86958854,0.00020882,2]
[332577889,1721310642586,-6155.61726957,0.000209,2]
[332577890,1721310642595,-150.112233,0.000209,2]
[332577891,1721310642605,-565.9136791,0.00020909,2]
[332577892,1721310642615,-394.35688689,0.00020909,2]
[332577893,1721310642624,-500.0,0.00020909,2]
[332577894,1721310642633,-1449.82366188,0.0002091,2]
[332577895,1721310642642,-6879.79283946,0.0002091,2]
[332577896,1721310642652,-183.68040243,0.0002091,2]
[332577897,1721310642661,-7105.52429329,0.0002091,2]
[332577898,1721310643020,-406.73153507,0.0002091,2]
[332578746,1721310770791,4577.56946,0.000225,30]
[332578751,1721311014294,413.80906003,0.00017912,7]
[332578752,1721311219884,2000.0,0.000225,30]
[332578829,1721311839028,-847.02565903,0.00019118,2]
[332578831,1721311839038,-166.666666,0.00019184,2]
[332578834,1721311839058,-1472.80906939,0.00019274,2]
[332578836,1721311839072,-5166.05,0.00019274,2]
[332579942,1721312917842,1000.0,0.00012,7]
[332579943,1721312918307,-166.666666,0.000184,2]
[332579944,1721312918359,-511.98170735,0.000186,2]
[332579945,1721312948832,500.0,0.000163,7]
[332579946,1721312949272,500.0,0.000163,7]
[332579947,1721312949704,500.0,0.000163,7]
[332579948,1721312950155,500.0,0.000163,7]
[332579949,1721312950607,500.0,0.000163,7]
[332579950,1721312951680,500.0,0.000163,7]
[332579951,1721312952227,500.0,0.000163,7]
[332579952,1721312952662,500.0,0.000163,7]
[332579953,1721312953741,500.0,0.000163,7]
[332579954,1721312954288,500.0,0.000163,7]
[332579955,1721312954709,500.0,0.000163,7]
[332579956,1721312955204,500.0,0.000163,7]
[332579957,1721312955703,500.0,0.000163,7]
[332579958,1721312956090,500.0,0.000163,7]
[332579959,1721312956664,500.0,0.000163,7]
[332579960,1721312957344,298.06462664,0.000163,7]
[332580514,1721313038534,-1290.56,0.00017912,2]
[332581044,1721313043643,-665.11835025,0.00017912,2]
[332581047,1721313043663,-5833.49533879,0.00017912,2]
[332581374,1721313046515,-1306.5388351,0.00017912,2]
[332581376,1721313046524,-594.9491618,0.00018599,2]
[332583187,1721313782871,374.98868838,9.999e-05,2]
[332583189,1721314082363,145.76270657,0.0001212,2]
[332583190,1721314082392,784.20737529,0.0001212,2]
[332583260,1721314233607,-166.666666,0.00017863,2]
[332583262,1721314233616,-847.02565903,0.00018092,2]
[332583264,1721314233626,-188.80182668,0.00018093,2]
[332583266,1721314233635,-208.6491226,0.00018183,2]
[332583268,1721314233645,-300.0,0.00018196,2]
[332583270,1721314233654,-6357.08067,0.00018197,2]
[332583271,1721314233664,-3604.62894529,0.00018239,2]
[332583273,1721314233673,-168.944231,0.00018257,2]
[332583275,1721314233682,-166.666666,0.0001835,2]
[332583278,1721314233695,-306.0,0.000184,2]
[332583280,1721314233704,-153.0,0.000184,2]
[332583281,1721314233714,-153.0,0.000184,2]
[332583284,1721314233728,-293.7070141,0.000184,2]
[332583286,1721314233738,-166.666666,0.00018837,2]
[332583288,1721314233748,-1878.03491512,0.00018899,2]
[332583290,1721314233758,-587.313305,0.000189,2]
[332583292,1721314233768,-153.0,0.000189,2]
[332583294,1721314233777,-150.0,0.000189,2]
[332583295,1721314233788,-306.0,0.00019,2]
[332583296,1721314233798,-306.0,0.00019,2]
[332583298,1721314233808,-293.7070141,0.00019,2]
[332583299,1721314233832,-206.5056545,0.00019,2]
[332583301,1721314233842,-293.7070141,0.00019,2]
[332583303,1721314233851,-587.4140282,0.00019,2]
[332583305,1721314233861,-584.9614226,0.00019,2]
[332583307,1721314233870,-250.0,0.00019041,2]
[332583309,1721314233880,-153.0,0.000191,2]
[332583311,1721314233890,-293.7070141,0.000191,2]
[332583313,1721314233900,-194.2614113,0.00019178,2]
[332583315,1721314233909,-168.944231,0.00019208,2]
[332583317,1721314233919,-480.48854678,0.00019271,2]
[332583319,1721314233928,-166.666666,0.00019324,2]
[332583321,1721314233938,-1612.66566685,0.00019347,2]
[332583323,1721314233947,-151.0,0.00019447,2]
[332583324,1721314233957,-151.0,0.00019447,2]
[332583325,1721314233966,-157.70688,0.00019447,2]
[332583326,1721314233976,-151.0,0.00019447,2]
[332583327,1721314233986,-570.153026,0.00019447,2]
[332583329,1721314233995,-570.153026,0.00019447,2]
[332583331,1721314234005,-1924.802552,0.00019447,2]
[332583333,1721314234015,-1638.48627691,0.00019447,2]
[332583362,1721314238656,-286.31627509,0.00019447,2]
[332583363,1721314238666,-151.0,0.00019447,2]
[332583364,1721314238676,-158.634135,0.00019447,2]
[332583365,1721314238685,-151.0,0.00019447,2]
[332583366,1721314238695,-627.930256,0.00019447,2]
[332583367,1721314238704,-194.859616,0.00019447,2]
[332583368,1721314238713,-627.930256,0.00019447,2]
[332583369,1721314238724,-151.0,0.00019447,2]
[332583370,1721314238733,-151.0,0.00019447,2]
[332583371,1721314238742,-151.0,0.00019447,2]
[332583372,1721314238751,-420.313403,0.00019447,2]
[332583373,1721314238761,-420.313403,0.00019447,2]
[332583374,1721314238770,-543.249471,0.00019447,2]
[332583375,1721314238780,-543.249471,0.00019447,2]
[332583376,1721314238790,-543.249471,0.00019447,2]
[332583377,1721314238799,-543.249471,0.00019447,2]
[332583378,1721314238808,-477.911265,0.00019447,2]
[332583379,1721314238820,-477.911265,0.00019447,2]
[332583380,1721314238830,-477.911265,0.00019447,2]
[332583381,1721314238839,-477.911265,0.00019447,2]
[332583382,1721314238850,-375.39217735,0.00019447,2]
[332583383,1721314238860,-248.42884512,0.00019447,2]
[332583384,1721314238870,-452.973413,0.00019447,2]
[332583385,1721314238880,-452.973413,0.00019447,2]
[332583386,1721314238889,-452.973413,0.00019447,2]
[332583387,1721314238898,-452.973413,0.00019447,2]
[332583388,1721314238908,-190.243208,0.00019447,2]
[332583389,1721314238917,-190.243208,0.00019447,2]
[332583390,1721314238927,-190.243208,0.00019447,2]
[332583391,1721314238936,-413.209495,0.00019799,2]
[332583392,1721314238946,-154.411635,0.00019799,2]
[332583393,1721314238955,-413.209495,0.00019799,2]
[332583394,1721314238965,-156.527676,0.00019799,2]
[332583395,1721314238974,-151.0,0.00019799,2]
[332583396,1721314238983,-151.0,0.00019799,2]
[332583397,1721314238993,-151.0,0.00019799,2]
[332583398,1721314239006,-151.0,0.00019799,2]
[332583399,1721314239015,-151.0,0.00019799,2]
[332583400,1721314239025,-151.0,0.00019799,2]
[332583401,1721314239036,-151.0,0.00019799,2]
[332583402,1721314239045,-627.930256,0.00019799,2]
[332583403,1721314239056,-627.930256,0.00019799,2]
[332583404,1721314239069,-151.0,0.00019799,2]
[332583405,1721314239078,-151.0,0.00019799,2]
[332583406,1721314239088,-151.0,0.00019799,2]
[332583407,1721314239097,-420.313403,0.00019799,2]
[332583408,1721314239108,-420.313403,0.00019799,2]
[332583409,1721314239118,-543.249471,0.00019799,2]
[332583410,1721314239128,-543.249471,0.00019799,2]
[332583411,1721314239138,-477.911265,0.00019799,2]
[332583412,1721314239148,-477.911265,0.00019799,2]
[332583413,1721314239158,-452.973413,0.00019799,2]
[332583414,1721314239168,-452.973413,0.00019799,2]
[332583415,1721314239177,-190.243208,0.00019799,2]
[332583416,1721314239187,-151.0,0.000198,2]
[332583417,1721314239197,-413.209495,0.000198,2]
[332583418,1721314239207,-413.209495,0.000198,2]
[332583419,1721314239216,-151.0,0.000198,2]
[332583420,1721314239226,-151.0,0.000198,2]
[332583421,1721314239235,-151.0,0.000198,2]
[332583422,1721314239246,-151.0,0.000198,2]
[332583423,1721314239255,-151.0,0.000198,2]
[332583424,1721314239266,-151.0,0.000198,2]
[332583425,1721314239275,-151.0,0.000198,2]
[332583426,1721314239290,-570.153026,0.000198,2]
[332583427,1721314239299,-570.153026,0.000198,2]
[332583428,1721314239309,-269.419272,0.000198,2]
[332583429,1721314239320,-1924.802552,0.000198,2]
[332583430,1721314239331,-1924.802552,0.000198,2]
[332583431,1721314239341,-151.0,0.000198,2]
[332583432,1721314239351,-627.930256,0.000198,2]
[332583433,1721314239362,-176.86958853,0.000198,2]
[332583434,1721314239372,-627.930256,0.000198,2]
[332583435,1721314239382,-627.930256,0.000198,2]
[332583436,1721314239391,-627.930256,0.000198,2]
[332583437,1721314239401,-627.930256,0.000198,2]
[332583438,1721314239410,-627.930256,0.000198,2]
[332583439,1721314239420,-151.0,0.000198,2]
[332583440,1721314239430,-151.447748,0.000198,2]
[332583441,1721314239440,-151.0,0.000198,2]
[332583442,1721314239450,-153.066164,0.000198,2]
[332583443,1721314239460,-151.0,0.000198,2]
[332583444,1721314239470,-296.351323,0.000198,2]
[332583445,1721314239479,-420.313403,0.000198,2]
[332583446,1721314239489,-420.313403,0.000198,2]
[332583447,1721314239499,-420.313403,0.000198,2]
[332583448,1721314239508,-420.313403,0.000198,2]
[332583450,1721314239518,-420.313403,0.000198,2]
[332583451,1721314239527,-420.313403,0.000198,2]
[332583452,1721314239537,-543.249471,0.000198,2]
[332583453,1721314239546,-543.249471,0.000198,2]
[332583454,1721314239555,-543.249471,0.000198,2]
[332583455,1721314239565,-543.249471,0.000198,2]
[332583456,1721314239576,-543.249471,0.000198,2]
[332583457,1721314239586,-543.249471,0.000198,2]
[332583458,1721314239595,-477.911265,0.000198,2]
[332583459,1721314239604,-477.911265,0.000198,2]
[332583460,1721314239614,-477.911265,0.000198,2]
[332583461,1721314239760,-477.911265,0.000198,2]
[332583462,1721314239770,-477.911265,0.000198,2]
[332583463,1721314239779,-477.911265,0.000198,2]
[332583464,1721314239789,-452.973413,0.000198,2]
[332583465,1721314239798,-452.973413,0.000198,2]
[332583466,1721314239807,-452.973413,0.000198,2]
[332583467,1721314239818,-452.973413,0.000198,2]
[332583468,1721314239828,-452.973413,0.000198,2]
[332583469,1721314239837,-452.973413,0.000198,2]
[332583470,1721314239847,-190.243208,0.000198,2]
[332583471,1721314239856,-190.243208,0.000198,2]
[332583472,1721314239867,-166.666666,0.00019811,2]
[332583473,1721314239878,-154.80649189,0.00019862,2]
[332583474,1721314239887,-153.0,0.00019863,2]
[332583475,1721314239896,-153.0,0.00019863,2]
[332583476,1721314239906,-153.0,0.00019863,2]
[332583477,1721314239915,-153.0,0.00019863,2]
[332583478,1721314239924,-153.0,0.00019863,2]
[332583480,1721314239933,-154.79103211,0.00019889,2]
[332583481,1721314239943,-154.79103211,0.00019889,2]
[332583482,1721314239952,-277.23392603,0.00019889,2]
[332583483,1721314239962,-500.0,0.00019889,2]
[332583484,1721314239971,-500.0,0.00019889,2]
[332583485,1721314239982,-587.00642557,0.00019889,2]
[332583486,1721314239991,-429.27348839,0.00019889,2]
[332583487,1721314240001,-245.07886,0.00019889,2]
[332583488,1721314240011,-500.0,0.00019889,2]
[332583489,1721314240020,-24199.492277,0.0001989,2]
[332583490,1721314240031,-151.43,0.0001989,3]
[332583491,1721314240040,-454.31,0.0001989,3]
[332583492,1721314240050,-166.85527227,0.00019899,2]
[332583493,1721314240059,-181.57019631,0.00019899,2]
[332583494,1721314240069,-202.20035161,0.00019899,2]
[332583495,1721314240078,-500.0,0.00019899,2]
[332583496,1721314240088,-500.0,0.00019899,2]
[332583497,1721314240097,-398.28673962,0.00019899,2]
[332583498,1721314240106,-500.0,0.00019899,2]
[332583499,1721314240116,-197.5280626,0.00019899,2]
[332583500,1721314240126,-500.0,0.00019899,2]
[332583501,1721314240135,-500.0,0.00019899,2]
[332583502,1721314240145,-500.0,0.00019899,2]
[332583503,1721314240154,-500.0,0.00019899,2]
[332583504,1721314240164,-500.0,0.00019899,2]
[332583505,1721314240174,-360.56848856,0.00019899,2]
[332583506,1721314240184,-500.0,0.00019899,2]
[332583507,1721314240194,-151.0,0.000199,2]
[332583508,1721314240204,-151.0,0.000199,2]
[332583509,1721314240213,-151.0,0.000199,2]
[332583510,1721314240223,-151.0,0.000199,2]
[332583511,1721314240232,-151.0,0.000199,2]
[332583512,1721314240242,-151.0,0.000199,2]
[332583513,1721314240251,-151.0,0.000199,2]
[332583514,1721314240261,-151.0,0.000199,2]
[332583515,1721314240270,-151.0,0.000199,2]
[332583516,1721314240281,-151.0,0.000199,2]
[332583517,1721314240292,-151.0,0.000199,2]
[332583518,1721314240302,-151.0,0.000199,2]
[332583519,1721314240312,-151.0,0.000199,2]
[332583520,1721314240325,-151.0,0.000199,2]
[332583521,1721314240334,-151.0,0.000199,2]
[332583522,1721314240343,-151.0,0.000199,2]
[332583523,1721314240352,-151.0,0.000199,2]
[332583524,1721314240361,-151.0,0.000199,2]
[332583525,1721314240373,-151.0,0.000199,2]
[332583526,1721314240384,-236.47046,0.000199,2]
[332583527,1721314240394,-164.012017,0.000199,2]
[332583528,1721314240404,-164.012017,0.000199,2]
[332583529,1721314240414,-151.0,0.000199,2]
[332583530,1721314240423,-151.0,0.000199,2]
[332583531,1721314240433,-151.0,0.000199,2]
[332583532,1721314240443,-151.0,0.000199,2]
[332583533,1721314240452,-151.0,0.000199,2]
[332583534,1721314240462,-151.0,0.000199,2]
[332583535,1721314240472,-151.0,0.000199,2]
[332583536,1721314240482,-151.0,0.000199,2]
[332583537,1721314240491,-151.0,0.000199,2]
[332583538,1721314240501,-151.0,0.000199,2]
[332583539,1721314240511,-151.0,0.000199,2]
[332583540,1721314240520,-151.0,0.000199,2]
[332583541,1721314240530,-151.0,0.000199,2]
[332583542,1721314240539,-151.0,0.000199,2]
[332583543,1721314240549,-151.0,0.000199,2]
[332583544,1721314240558,-151.0,0.000199,2]
[332583545,1721314240570,-151.0,0.000199,2]
[332583546,1721314240580,-288.88233,0.000199,2]
[332583547,1721314240590,-151.0,0.000199,2]
[332583548,1721314240600,-151.0,0.000199,2]
[332583549,1721314240611,-413.209495,0.000199,2]
[332583550,1721314240620,-413.209495,0.000199,2]
[332583551,1721314240630,-413.209495,0.000199,2]
[332583552,1721314240639,-413.209495,0.000199,2]
[332583553,1721314240648,-413.209495,0.000199,2]
[332583554,1721314240658,-413.209495,0.000199,2]
[332583555,1721314240667,-413.209495,0.000199,2]
[332583556,1721314240677,-413.209495,0.000199,2]
[332583557,1721314240687,-413.209495,0.000199,2]
[332583558,1721314240696,-413.209495,0.000199,2]
[332583559,1721314240706,-413.209495,0.000199,2]
[332583560,1721314240715,-413.209495,0.000199,2]
[332583561,1721314240725,-413.209495,0.000199,2]
[332583562,1721314240734,-413.209495,0.000199,2]
[332583563,1721314240743,-151.0,0.000199,2]
[332583564,1721314240753,-151.0,0.000199,2]
[332583565,1721314240762,-151.0,0.000199,2]
[332583566,1721314240772,-151.0,0.000199,2]
[332583567,1721314240781,-151.0,0.000199,2]
[332583568,1721314240791,-151.0,0.000199,2]
[332583569,1721314240801,-151.0,0.000199,2]
[332583570,1721314240811,-151.0,0.000199,2]
[332583571,1721314240823,-151.0,0.000199,2]
[332583572,1721314240832,-151.0,0.000199,2]
[332583573,1721314240842,-151.0,0.000199,2]
[332583574,1721314240851,-151.0,0.000199,2]
[332583575,1721314240860,-232.225298,0.000199,2]
[332583576,1721314240869,-151.0,0.000199,2]
[332583577,1721314240878,-151.0,0.000199,2]
[332583578,1721314240888,-151.0,0.000199,2]
[332583579,1721314240897,-158.546276,0.000199,2]
[332583580,1721314240907,-151.0,0.000199,2]
[332583581,1721314240916,-151.0,0.000199,2]
[332583582,1721314240925,-151.0,0.000199,2]
[332583583,1721314240936,-151.0,0.000199,2]
[332583584,1721314240947,-151.0,0.000199,2]
[332583585,1721314240956,-151.0,0.000199,2]
[332583586,1721314240966,-151.733331,0.000199,2]
[332583587,1721314240975,-151.0,0.000199,2]
[332583588,1721314240984,-246.342741,0.000199,2]
[332583589,1721314240994,-151.0,0.000199,2]
[332583590,1721314241003,-151.0,0.000199,2]
[332583591,1721314241012,-570.153026,0.000199,2]
[332583592,1721314241022,-570.153026,0.000199,2]
[332583593,1721314241031,-151.0,0.000199,2]
[332583594,1721314241040,-570.153026,0.000199,2]
[332583595,1721314241050,-570.153026,0.000199,2]
[332583596,1721314241060,-570.153026,0.000199,2]
[332583597,1721314241072,-570.153026,0.000199,2]
[332583598,1721314241083,-570.153026,0.000199,2]
[332583599,1721314241093,-570.153026,0.000199,2]
[332583600,1721314241102,-570.153026,0.000199,2]
[332583601,1721314241115,-151.0,0.000199,2]
[332583602,1721314241126,-570.153026,0.000199,2]
[332583603,1721314241136,-151.0,0.000199,2]
[332583604,1721314241145,-570.153026,0.000199,2]
[332583605,1721314241156,-151.0,0.000199,2]
[332583606,1721314241166,-151.0,0.000199,2]
[332583607,1721314241176,-570.153026,0.000199,2]
[332583608,1721314241185,-570.153026,0.000199,2]
[332583609,1721314241195,-570.153026,0.000199,2]
[332583610,1721314241207,-570.153026,0.000199,2]
[332583611,1721314241218,-570.153032,0.000199,2]
[332583612,1721314241228,-1924.802552,0.000199,2]
[332583613,1721314241238,-1924.802552,0.000199,2]
[332583614,1721314241247,-1924.802552,0.000199,2]
[332583615,1721314241258,-1924.802552,0.000199,2]
[332583616,1721314241268,-1924.802552,0.000199,2]
[332583617,1721314241277,-1924.802552,0.000199,2]
[332583618,1721314241291,-1924.802552,0.000199,2]
[332583619,1721314241300,-1924.802552,0.000199,2]
[332583620,1721314241310,-1924.802552,0.000199,2]
[332583621,1721314241321,-1924.802552,0.000199,2]
[332583622,1721314241330,-1924.802552,0.000199,2]
[332583623,1721314241340,-1924.802552,0.000199,2]
[332583624,1721314241349,-1924.802552,0.000199,2]
[332583625,1721314241358,-1924.802552,0.000199,2]
[332583626,1721314241369,-1924.802552,0.000199,2]
[332583627,1721314241379,-1924.80256,0.000199,2]
[332583628,1721314241389,-151.0,0.000199,2]
[332583629,1721314241398,-627.930256,0.000199,2]
[332583630,1721314241407,-627.930256,0.000199,2]
[332583631,1721314241417,-627.930256,0.000199,2]
[332583632,1721314241426,-627.930256,0.000199,2]
[332583633,1721314241435,-627.930256,0.000199,2]
[332583634,1721314241445,-627.930256,0.000199,2]
[332583635,1721314241454,-627.930256,0.000199,2]
[332583636,1721314241464,-627.930256,0.000199,2]
[332583637,1721314241473,-627.930256,0.000199,2]
[332583638,1721314241482,-627.930264,0.000199,2]
[332583639,1721314241492,-420.313403,0.000199,2]
[332583640,1721314241502,-420.313403,0.000199,2]
[332583641,1721314241511,-420.313403,0.000199,2]
[332583642,1721314241521,-420.313403,0.000199,2]
[332583643,1721314241530,-420.313403,0.000199,2]
[332583644,1721314241539,-420.313403,0.000199,2]
[332583645,1721314241549,-420.313403,0.000199,2]
[332583646,1721314241558,-420.313403,0.000199,2]
[332583647,1721314241570,-420.313403,0.000199,2]
[332583648,1721314241580,-420.313411,0.000199,2]
[332583649,1721314241589,-543.249471,0.000199,2]
[332583650,1721314241599,-543.249471,0.000199,2]
[332583651,1721314241608,-543.249471,0.000199,2]
[332583652,1721314241618,-543.249471,0.000199,2]
[332583653,1721314241734,-543.249471,0.000199,2]
[332583654,1721314241744,-543.249471,0.000199,2]
[332583655,1721314241753,-543.249471,0.000199,2]
[332583656,1721314241763,-543.249464,0.000199,2]
[332583657,1721314241773,-1000.0,0.000199,2]
[332583658,1721314241782,-1000.0,0.000199,2]
[332583659,1721314241793,-1000.0,0.000199,2]
[332583660,1721314241802,-1000.0,0.000199,2]
[332583661,1721314241813,-1000.0,0.000199,2]
[332583662,1721314241826,-1000.0,0.000199,2]
[332583663,1721314241836,-1000.0,0.000199,2]
[332583664,1721314241845,-1000.0,0.000199,2]
[332583665,1721314241855,-1000.0,0.000199,2]
[332583666,1721314241865,-1000.0,0.000199,2]
[332583667,1721314241874,-1000.0,0.000199,2]
[332583668,1721314241883,-1000.0,0.000199,2]
[332583669,1721314241892,-1000.0,0.000199,2]
[332583670,1721314241902,-1000.0,0.000199,2]
[332583671,1721314241912,-1000.0,0.000199,2]
[332583672,1721314241921,-1000.0,0.000199,2]
[332583673,1721314241931,-1000.0,0.000199,2]
[332583674,1721314241941,-1000.0,0.000199,2]
[332583675,1721314241952,-1000.0,0.000199,2]
[332583676,1721314241962,-1000.0,0.000199,2]
[332583677,1721314241971,-1000.0,0.000199,2]
[332583678,1721314241981,-1000.0,0.000199,2]
[332583679,1721314241990,-1000.0,0.000199,2]
[332583680,1721314242000,-1000.0,0.000199,2]
[332583681,1721314242010,-1000.0,0.000199,2]
[332583682,1721314242020,-1000.0,0.000199,2]
[332583683,1721314242029,-1000.0,0.000199,2]
[332583684,1721314242039,-1000.0,0.000199,2]
[332583685,1721314242048,-1000.0,0.000199,2]
[332583686,1721314242058,-1000.0,0.000199,2]
[332583687,1721314242067,-1000.0,0.000199,2]
[332583688,1721314242080,-1000.0,0.000199,2]
[332583689,1721314242089,-1000.0,0.000199,2]
[332583690,1721314242098,-1000.0,0.000199,2]
[332583691,1721314242108,-1000.0,0.000199,2]
[332583692,1721314242117,-1000.0,0.000199,2]
[332583693,1721314242127,-1000.0,0.000199,2]
[332583694,1721314242137,-1000.0,0.000199,2]
[332583695,1721314242146,-1000.0,0.000199,2]
[332583696,1721314242156,-1000.0,0.000199,2]
[332583697,1721314242171,-1000.0,0.000199,2]
[332583698,1721314242181,-1000.0,0.000199,2]
[332583699,1721314242191,-1000.0,0.000199,2]
[332583700,1721314242200,-1000.0,0.000199,2]
[332583701,1721314242210,-1000.0,0.000199,2]
[332583702,1721314242220,-1000.0,0.000199,2]
[332583703,1721314242229,-1000.0,0.000199,2]
[332583704,1721314242239,-1000.0,0.000199,2]
[332583705,1721314242248,-1000.0,0.000199,2]
[332583706,1721314242258,-1000.0,0.000199,2]
[332583707,1721314242268,-1000.0,0.000199,2]
[332583708,1721314242278,-1000.0,0.000199,2]
[332583709,1721314242288,-1000.0,0.000199,2]
[332583710,1721314242301,-1000.0,0.000199,2]
[332583711,1721314242314,-1000.0,0.000199,2]
[332583712,1721314242326,-1000.0,0.000199,2]
[332583713,1721314242337,-477.911265,0.000199,2]
[332583714,1721314242347,-1000.0,0.000199,2]
[332583715,1721314242357,-477.911265,0.000199,2]
[332583716,1721314242368,-477.911265,0.000199,2]
[332583717,1721314242378,-1000.0,0.000199,2]
[332583718,1721314242388,-477.911265,0.000199,2]
[332583719,1721314242398,-1000.0,0.000199,2]
[332583720,1721314242408,-1000.0,0.000199,2]
[332583721,1721314242418,-1000.0,0.000199,2]
[332583722,1721314242427,-1000.0,0.000199,2]
[332583723,1721314242437,-1000.0,0.000199,2]
[332583724,1721314242447,-1000.0,0.000199,2]
[332583726,1721314242457,-1000.0,0.000199,2]
[332583727,1721314242467,-477.911265,0.000199,2]
[332583728,1721314242476,-1000.0,0.000199,2]
[332583729,1721314242486,-477.911265,0.000199,2]
[332583730,1721314242495,-1000.0,0.000199,2]
[332583731,1721314242505,-477.911265,0.000199,2]
[332583732,1721314242514,-477.91126532,0.000199,2]
[332583733,1721314242523,-1000.0,0.000199,2]
[332583734,1721314242533,-1000.0,0.000199,2]